Cogmind - Beta 13 @@@ ROGUE MODE // 2024.04.06 @ 02:07:59 Player: SnowyImp Result: Destroyed by H-61 Shepherd with Heavy Assault Cannon Performance ------------- Evolutions (2) 1000 Regions Visited (7) 1400 Robots Destroyed (35) 175 Value Destroyed (943) 943 Prototype IDs (5) 100 Alien Tech Used (0) 0 Bonus (300) 300 TOTAL SCORE: 3918 Bonus ------- Aligned with FarCom 300 Cogmind --------- Core Integrity 0/550 Matter 250/300 Energy 62/100 System Corruption 0% Temperature Cool (0) Movement Core (50) Location -8/Materials Parts ------- > --- POWER (1) -------- (None) > --- PROPULSION (4) --- (None) > --- UTILITY (4) ------ (None) > --- WEAPON (2) ------- (None) > --- INVENTORY (5) ---- Compact Wheel Mining Laser Peak State ------------ > --- POWER ------------ Improved Ion Engine > --- PROPULSION ------- Aluminum Leg Aluminum Leg Aluminum Leg > --- UTILITY ---------- Heat Sink Decoy Drone Bay > --- WEAPON ----------- Advanced Beam Rifle Advanced Beam Rifle > --- INVENTORY -------- Light Nuclear Core Compact Wheel Particle Cannon Mining Laser [Rating: 28] Favorites ----------- Power Improved Ion Engine Engine Improved Ion Engine Power Core Light Nuclear Core Propulsion Aluminum Leg Treads Light Treads Leg Aluminum Leg Wheel Compact Wheel Flight Unit Flight Unit Utility Heat Sink Device Heat Sink Storage Small Storage Unit Protection Medium Armor Plating Weapon Advanced Beam Rifle Energy Gun Advanced Beam Rifle Energy Cannon Beam Cannon Ballistic Gun Light Assault Rifle Launcher Proton Missile Launcher Build | -11 -10 -10 -9 -9 -9 -8 -8 ------- Run | Yrd Mat Min Mat Min Exi Min Mat Slots Evolved 4 | . . . 2 . . . 2 Power . | . . . . . . . . Propulsion 2 | . . . 1 . . . 1 Utility 2 | . . . 1 . . . 1 Weapon . | . . . . . . . . Parts Attached 62 | 6 2 8 20 2 . 3 21 Power 16 | 1 . 4 7 . . . 4 Engine 11 | 1 . 4 5 . . . 1 Core 5 | . . . 2 . . . 3 Reactor . | . . . . . . . . Propulsion 25 | 2 . 2 8 1 . 2 10 Treads 3 | . . 2 1 . . . . Leg 9 | 2 . . 3 1 . 2 1 Wheel 1 | . . . . . . . 1 Hover . | . . . . . . . . Flight 12 | . . . 4 . . . 8 Utility 5 | 1 . . 2 1 . . 1 Device 3 | . . . 1 1 . . 1 Storage 1 | 1 . . . . . . . Processor . | . . . . . . . . Hackware . | . . . . . . . . Protection 1 | . . . 1 . . . . Artifact . | . . . . . . . . Weapon 16 | 2 2 2 3 . . 1 6 Energy Gun 6 | . . . 2 . . 1 3 Energy Cannon 7 | . 2 2 1 . . . 2 Ballistic Gun 2 | 2 . . . . . . . Ballistic Cannon . | . . . . . . . . Launcher 1 | . . . . . . . 1 Special Weapon . | . . . . . . . . Impact Weapon . | . . . . . . . . Slashing Weapon . | . . . . . . . . Piercing Weapon . | . . . . . . . . Special Melee Weapon . | . . . . . . . . Unidentified Prototypes 3 | . . . 1 1 1 . . Parts Lost 28 | . . 5 5 . . 3 15 Power 7 | . . 2 1 . . . 4 Propulsion 14 | . . 1 4 . . 2 7 Utility 1 | . . . . . . . 1 Weapon 6 | . . 2 . . . 1 3 Highest Loss Streak 11 | . . 3 3 . . 3 11 To Critical Strikes . | . . . . . . . . Average Slot Usage (%) 77 | . 84 83 66 86 83 75 55 Engine 10 | . 14 13 9 11 11 11 5 Treads 7 | . . 23 4 . . . . Leg 19 | . 28 4 12 33 33 31 18 Flight 1 | . . . 5 . . . 8 Device 9 | . . . 8 20 17 11 6 Storage 5 | . 14 14 3 . . . . Energy Gun 12 | . . . 14 22 22 22 12 Energy Cannon 10 | . 21 28 7 . . . 3 Naked Turns 9 | . . . . . . . 9 Heaviest Build 26 | 10 14 18 15 26 26 13 13 Greatest Support 60 | 20 20 40 60 30 30 35 52 Greatest Overweight (x) 4 | . . 1 4 . . 1 2 Average Overweight (x) . | . . . . . . . . Largest Inventory Capacity 8 | 8 8 8 8 5 5 5 5 Average Capacity 6 | 7 8 8 5 5 5 5 5 Most Carried 7 | 3 6 7 5 5 5 5 5 Average Carried 4 | 2 4 5 4 4 5 4 4 Final Capacity 8 | 8 8 8 5 5 5 5 5 Final Carried 6 | 3 6 4 4 5 5 5 2 Class Distribution -------------------- 58% | Scavenger-Mutant 41% | Mutant Dominant Class ---------------- Mutant | -10/Materials Mutant | -10/Mines Scavenger-Mutant | -9/Materials Scavenger-Mutant | -9/Mines Scavenger-Mutant | -9/Exiles Scavenger-Mutant | -8/Mines Scavenger-Mutant | -8/Materials Resources | -11 -10 -10 -9 -9 -9 -8 -8 ----------- Run | Yrd Mat Min Mat Min Exi Min Mat Matter Collected 702 | 180 . 162 234 10 . 35 81 Remotely . | . . . . . . . . Salvage Created 1351 | . . 374 477 154 . 149 197 Parts 68 | . . 16 26 5 . 5 16 Haulers Intercepted . | . . . . . . . . Recyclers Shooed . | . . . . . . . . Parts Field Recycled . | . . . . . . . . Retrieved Matter . | . . . . . . . . Parts Self-Destructed . | . . . . . . . . Prevented . | . . . . . . . . Kills | -11 -10 -10 -9 -9 -9 -8 -8 ------- Run | Yrd Mat Min Mat Min Exi Min Mat Combat Hostiles Destroyed 33 | . . 8 13 3 . 3 6 Guns 17 | . . . 8 3 . 2 4 Cannons 14 | . . 7 5 . . . 2 Classes Destroyed 10 | . . 5 1 1 . . 3 Worker 1 | . . 1 . . . . . Builder 1 | . . . . . . . 1 Recycler 2 | . . 2 . . . . . Swarmer 9 | . . 3 4 . . . 2 Cutter 2 | . . . . . . . 2 Grunt 11 | . . . 6 2 . 3 . Brawler 1 | . . . . 1 . . . Sentry 5 | . . 2 3 . . . . Hunter 2 | . . . . . . . 2 Assembled 2 | . . 2 . . . . . Best Kill Streak 5 | . . 4 5 3 . 3 2 Combat Bots Only 5 | . . 3 5 3 . 3 2 Max Kills in Single Turn 2 | . . 2 2 1 . 1 2 Gunslinging 1 | . . . 1 . . . . Exploded . | . . . . . . . . Melee . | . . . . . . . . Uniques/NPCs Destroyed 1 | . . 1 . . . . . YI-UF0 (-10/Mines) Combat | -11 -10 -10 -9 -9 -9 -8 -8 -------- Run | Yrd Mat Min Mat Min Exi Min Mat Hostile Shots Fired 335 | . 2 78 90 6 4 25 130 Missed 92 | . 1 34 15 3 1 7 31 Damage Taken 3458 | . 11 793 817 35 107 312 1383 Core 835 | . . 107 133 . 23 19 553 Absorbed by Shields . | . . . . . . . . Core Remaining (%) 71 | 100 . 57 . . . 56 . Volleys Fired 103 | . 1 20 38 4 . 10 30 Largest 2 | . 2 2 2 2 . 2 2 Hottest 133 | . 40 120 122 122 . 122 133 Shots Fired 196 | . 2 40 73 8 . 20 53 Gun 98 | . 2 . 32 8 . 20 36 Cannon 98 | . . 40 41 . . . 17 Launcher . | . . . . . . . . Special . | . . . . . . . . Kinetic 2 | . 2 . . . . . . Thermal 194 | . . 40 73 8 . 20 53 Explosive . | . . . . . . . . Electromagnetic . | . . . . . . . . Robot Hit Streak 12 | . 1 8 8 6 . 6 12 Robot Miss Streak 7 | . 1 3 7 1 . 2 3 Penetration Max . | . . . . . . . . Secondary Targets 2 | . . . 2 . . . . Max Gunslinging Chain 1 | . . . 1 . . . . Shots Hit Robots 114 | . 1 24 40 7 . 12 30 Core Hits 47 | . . 14 15 3 . 5 10 Critical Kills 1 | . . 1 . . . . . Critical Parts Destroyed . | . . . . . . . . Critical Strikes 7 | . . 1 1 2 . 2 1 Burn 6 | . . . 1 2 . 2 1 Meltdown 1 | . . 1 . . . . . Melee Attacks . | . . . . . . . . Impact . | . . . . . . . . Slashing . | . . . . . . . . Piercing . | . . . . . . . . Sneak Attacks . | . . . . . . . . Combat Hostiles . | . . . . . . . . Follow-up Attacks . | . . . . . . . . Damage Inflicted 2229 | . 8 455 753 140 . 305 568 Guns 1274 | . 8 . 440 140 . 305 381 Cannons 951 | . . 455 312 . . . 184 Explosions . | . . . . . . . . Melee . | . . . . . . . . Ramming 4 | . . . 1 . . . 3 Kinetic 8 | . 8 . . . . . . Thermal 2217 | . . 455 752 140 . 305 565 Explosive . | . . . . . . . . Electromagnetic . | . . . . . . . . Impact . | . . . . . . . . Slashing . | . . . . . . . . Piercing . | . . . . . . . . Highest Corruption . | . . . . . . . . Average Corruption . | . . . . . . . . Corruption Purged . | . . . . . . . . Corruption Blocked . | . . . . . . . . Overload Shots . | . . . . . . . . Overflow Damage . | . . . . . . . . Projectiles . | . . . . . . . . Explosions . | . . . . . . . . Melee . | . . . . . . . . Knockbacks . | . . . . . . . . Impact . | . . . . . . . . Kinetic . | . . . . . . . . Secondary . | . . . . . . . . Self-Inflicted Damage . | . . . . . . . . Shots . | . . . . . . . . Rammed 1 | . . . 1 . . . . Targets Rammed 2 | . . . 1 . . . 1 Kicked 1 | . . . . . . . 1 Crushed . | . . . . . . . . Highest Temperature 525 | . . 238 525 54 . 358 294 Average Temperature 143 | . . 89 218 28 . 200 83 Received Heat Transfer 603 | . 6 90 210 18 . 162 117 Effects 13 | . . . 9 . . 3 1 Shutdowns 3 | . . . 2 . . 1 . Energy Bleed 2 | . . . . . . 1 1 Interference 2 | . . . 2 . . . . Matter Decay 1 | . . . 1 . . . . Short Circuit 1 | . . . 1 . . . . Damage (minor) 4 | . . . 3 . . 1 . Siege Activations . | . . . . . . . . Robots Corrupted . | . . . . . . . . Combat Hostiles . | . . . . . . . . Parts Fried . | . . . . . . . . Impact Corruptions . | . . . . . . . . Robots Melted 2 | . . 1 . . . 1 . Combat Hostiles 2 | . . 1 . . . 1 . Parts Melted 10 | . . . 6 1 . 1 2 Heat Transferred 4958 | . . 962 1554 407 . 740 1295 Parts Sabotaged . | . . . . . . . . Parts Stolen . | . . . . . . . . Parts Stripped . | . . . . . . . . Power Chain Reactions . | . . . . . . . . Alert | -11 -10 -10 -9 -9 -9 -8 -8 ------- Run | Yrd Mat Min Mat Min Exi Min Mat Peak Influence 310 | . 8 128 310 70 . 108 286 Initial 51 | . . 3 . 51 . . 41 Average 76 | . 1 48 167 48 . 61 138 Maximum Alert Level 1 | . . . 1 . . . 1 Low Security (%) 89 | 100 100 100 59 100 . 100 68 Level 1 10 | . . . 40 . . . 31 Level 2 . | . . . . . . . . Level 3 . | . . . . . . . . Level 4 . | . . . . . . . . Level 5 . | . . . . . . . . High Security . | . . . . . . . . Max Security . | . . . . . . . . Squads Dispatched 8 | . 2 . 2 . . . 4 Investigation 3 | . 1 . 1 . . . 1 Extermination . | . . . . . . . . Reinforcement 5 | . 1 . 1 . . . 3 Assault . | . . . . . . . . Garrison . | . . . . . . . . Intercept . | . . . . . . . . Searches Triggered . | . . . . . . . . Construction Impeded . | . . . . . . . . Haulers Reinforced . | . . . . . . . . Active Scanning Responses . | . . . . . . . . Cargo Convoy Interrupts . | . . . . . . . . Stealth | -11 -10 -10 -9 -9 -9 -8 -8 --------- Run | Yrd Mat Min Mat Min Exi Min Mat Distress Signals 3 | . . . 1 . . . 2 Communications Jammed . | . . . . . . . . Distress Signals . | . . . . . . . . Times Spotted 66 | . 3 12 19 3 4 6 19 Peak Tracking Total 10 | . 3 5 6 3 5 3 10 Tactical Retreats 7 | . . 1 . . . 2 4 Traps | -11 -10 -10 -9 -9 -9 -8 -8 ------- Run | Yrd Mat Min Mat Min Exi Min Mat Traps Triggered . | . . . . . . . . Indirectly . | . . . . . . . . Trap Hack Attempts . | . . . . . . . . Triggered . | . . . . . . . . Disarmed . | . . . . . . . . Reprogrammed . | . . . . . . . . Reused . | . . . . . . . . Traps Extracted . | . . . . . . . . Installed . | . . . . . . . . Triggered . | . . . . . . . . Machines | -11 -10 -10 -9 -9 -9 -8 -8 ---------- Run | Yrd Mat Min Mat Min Exi Min Mat Machines Disabled . | . . . . . . . . Max in Single Turn . | . . . . . . . . Machines Repaired . | . . . . . . . . Machines Dismantled . | . . . . . . . . Machines Sabotaged . | . . . . . . . . Overloaded Fab Kills . | . . . . . . . . Hacking | -11 -10 -10 -9 -9 -9 -8 -8 --------- Run | Yrd Mat Min Mat Min Exi Min Mat Machines Accessed 9 | . 2 . 3 1 . 1 2 Terminals 8 | . 2 . 3 . . 1 2 Fabricators . | . . . . . . . . Repair Stations . | . . . . . . . . Recycling Units . | . . . . . . . . Scanalyzers . | . . . . . . . . Garrison Access . | . . . . . . . . Total Hacks 24 | . 4 . 11 1 . 3 5 Successful 7 | . 1 . 3 1 . 1 1 Failed 17 | . 3 . 8 . . 2 4 Catastrophic 6 | . 2 . 2 . . 1 1 Database Lockouts . | . . . . . . . . Manual 23 | . 4 . 8 . 3 3 5 Terminals 23 | . 4 . 11 . . 3 5 Fabricators . | . . . . . . . . Repair Stations . | . . . . . . . . Recycling Units . | . . . . . . . . Scanalyzers . | . . . . . . . . Garrison Access . | . . . . . . . . Terminal Hacks 6 | . 1 . 2 1 . 1 1 Prototype ID Bank 1 | . . . 1 . . . . Open Door 1 | . . . . 1 . . . Level Access Points 2 | . . . 1 . . . 1 Branch Access Points 2 | . 1 . . . . 1 . Fabricator Hacks . | . . . . . . . . Repair Station Hacks . | . . . . . . . . Recycling Unit Hacks . | . . . . . . . . Scanalyzer . | . . . . . . . . Garrison Access Hacks . | . . . . . . . . Unauthorized Hacks 1 | . . . 1 . . . . Terminals 1 | . . . 1 . . . . Assimilate 1 | . . . 1 . . . . Fabricators . | . . . . . . . . Repair Stations . | . . . . . . . . Recycling Units . | . . . . . . . . Scanalyzers . | . . . . . . . . Garrison Access . | . . . . . . . . Data Cores Recovered . | . . . . . . . . Used . | . . . . . . . . Hacking Detections 7 | . 2 . 3 . . 1 1 Full Trace Events 3 | . 1 . 1 . . . 1 Feedback Events . | . . . . . . . . Feedback Blocked . | . . . . . . . . Robot Schematics Acquired . | . . . . . . . . Robots Built . | . . . . . . . . Authchips . | . . . . . . . . Time . | . . . . . . . . Total Robot Build Rating . | . . . . . . . . Part Schematics Acquired . | . . . . . . . . Parts Built . | . . . . . . . . Authchips . | . . . . . . . . Time . | . . . . . . . . Total Part Build Rating . | . . . . . . . . Parts Repaired . | . . . . . . . . Time . | . . . . . . . . Parts Recycled . | . . . . . . . . Recycled Matter . | . . . . . . . . Retrieved Matter . | . . . . . . . . Retrieved Components . | . . . . . . . . Parts Scanalyzed . | . . . . . . . . Part Schematics Acquired . | . . . . . . . . Parts Damaged . | . . . . . . . . Bothacking | -11 -10 -10 -9 -9 -9 -8 -8 ------------ Run | Yrd Mat Min Mat Min Exi Min Mat Used RIF Installer . | . . . . . . . . Robots Hacked . | . . . . . . . . Non-combat . | . . . . . . . . Combat . | . . . . . . . . Robot Hacks Applied . | . . . . . . . . Relay Couplers Released . | . . . . . . . . Fabnet Peak Effective % . | . . . . . . . . Robots Rewired . | . . . . . . . . Allies Hacked . | . . . . . . . . Hacks Repelled . | . . . . . . . . Allies | -11 -10 -10 -9 -9 -9 -8 -8 -------- Run | Yrd Mat Min Mat Min Exi Min Mat Total Allies . | . . . . . . . . Largest Group . | . . . . . . . . Highest-Rated Group . | . . . . . . . . Highest-Rated Ally . | . . . . . . . . Total Orders . | . . . . . . . . Ally Attacks . | . . . . . . . . Total Damage . | . . . . . . . . Kills . | . . . . . . . . Allies Corrupted . | . . . . . . . . Allies Melted . | . . . . . . . . Intel | -11 -10 -10 -9 -9 -9 -8 -8 ------- Run | Yrd Mat Min Mat Min Exi Min Mat Robot Analysis Total . | . . . . . . . . Derelict Logs Recovered 2 | . . 2 . . . . . Drone Launches . | . . . . . . . . Drone Recoveries . | . . . . . . . . Exploration | -11 -10 -10 -9 -9 -9 -8 -8 ------------- Run | Yrd Mat Min Mat Min Exi Min Mat Turns Passed 3089 | 109 144 849 434 541 473 198 341 Spaces Moved 2200 | 76 113 497 289 434 394 135 262 Core 48 | 4 . . 7 . . . 37 Treads 424 | . . 411 13 . . . . Legs 1471 | 72 113 86 121 434 394 135 116 Wheels 12 | . . . . . . . 12 Hover . | . . . . . . . . Flight 245 | . . . 148 . . . 97 Fastest Speed 31 | 50 120 120 37 120 120 120 31 Average Speed 118 | 116 120 154 85 120 120 121 82 Slowest Speed 280 | 120 120 190 280 120 120 190 150 Overloaded Moves . | . . . . . . . . Propulsion Burnouts . | . . . . . . . . Robots Hopped 5 | . . . . . . . 5 Cave-ins Triggered . | . . . . . . . . Time Travels 1 | . . . . . 1 . . Exploration Rate (%) 45 | 5 30 94 32 87 63 22 27 Regions Visited 7 Branch Regions 4 Pre-discovered Areas . | . . . . . . . . Known Exits Taken 3 | . 1 . 1 . . 1 . Unknown Exits Taken 4 | 1 . 1 . 1 1 . . Scrap Searched 2 | . . 1 . 1 . . . Spaces Dug . | . . . . . . . . Terrain Destroyed . | . . . . . . . . Melee . | . . . . . . . . Projectile . | . . . . . . . . AOE . | . . . . . . . . Terrain Rammed . | . . . . . . . . Walls Destroyed . | . . . . . . . . Machines Disabled . | . . . . . . . . Actions | -11 -10 -10 -9 -9 -9 -8 -8 --------- Run | Yrd Mat Min Mat Min Exi Min Mat Total 2464 | 93 120 539 399 446 394 148 325 Wait 67 | 9 . 9 36 5 . . 8 Move 2184 | 75 112 496 288 433 393 134 253 Hop 4 | . . . . . . . 4 Pick Up 16 | 3 3 2 3 1 . 1 3 Fast Attach 38 | 6 2 3 13 1 . 2 11 Attach 12 | . . 3 2 . . 1 6 Detach 1 | . . . 1 . . . . Swap 12 | . . 2 5 1 . . 4 Drop 25 | . 2 4 12 1 1 . 5 Fire 103 | . 1 20 38 4 . 10 30 Melee . | . . . . . . . . Ram . | . . . . . . . . Kick 1 | . . . . . . . 1 Crush 1 | . . . 1 . . . . Escape Stasis . | . . . . . . . . Rewire . | . . . . . . . . Trap . | . . . . . . . . Miscellaneous . | . . . . . . . . Route ------- -11/Scrapyard -10/Materials -10/Mines -9/Materials (discovered 4 exits: Mat x3 / *Min) -9/Mines (discovered 2 exits: *Mat / *Exi) -9/Exiles (discovered 2 exits: *Min x2) -8/Mines -8/Materials (discovered 3 exits: Fac x3) History --------- Turn | Location | Event 2 | -11/Scrapyard | Discovered new exit (range 16) 110 | -11/Scrapyard | Entered Materials 231 | -10/Materials | Identified exit to Mines 254 | -10/Materials | Entered Mines 306 | -10/Mines | Build established: Mutant 325 | -10/Mines | Learned Materials terminal intel 430 | -10/Mines | Learned location of 1 exit from Materials 505 | -10/Mines | Assembled infested the area 701 | -10/Mines | Destroyed YI-UF0 730 | -10/Mines | Lost 3 parts (2p1w) 1084 | -10/Mines | Discovered new exit (range 11) 1103 | -10/Mines | Entered Materials 1103 | -9/Materials | Evolved 2 slots: Propulsion x1, Utility x1 1104 | -9/Materials | Identified exit to Mines 1105 | -9/Materials | Loaded intel: 12 terminal locations 1230 | -9/Materials | Lost 3 parts (1p2n) 1242 | -9/Materials | Identified exit to Materials 1537 | -9/Materials | Entered Mines 1612 | -9/Mines | Found the Drone Emporium 1618 | -9/Mines | Found Prototype Device 1618 | -9/Mines | Identified Decoy Drone Bay 1639 | -9/Mines | Build established: Scavenger-Mutant 1967 | -9/Mines | Discovered exit to Materials (range 12) 2073 | -9/Mines | Deemed a non-threat by the Exiles lab entrance 2073 | -9/Mines | Discovered new exit (range 5) 2078 | -9/Mines | Entered Exiles 2106 | -9/Exiles | Met 8R-AWN 2114 | -9/Exiles | Discovered new exit (range 15) 2173 | -9/Exiles | Met EX-HEX 2209 | -9/Exiles | Met EX-BIN 2305 | -9/Exiles | Aligned with FarCom system 2306 | -9/Exiles | Given EX-Vault access code 2335 | -9/Exiles | Opened EX-Vault 2348 | -9/Exiles | Found Prototype Device 2348 | -9/Exiles | Identified Chronowheel 2348 | -9/Exiles | Activated Chronowheel 2348 | -9/Exiles | Spacetime reconverged on an earlier point 2373 | -9/Exiles | Warned to stay clear of 0b10 Research branches 2385 | -9/Exiles | Exiles lab attacked by MAIN.C 2539 | -9/Exiles | Discovered new exit (range 11) 2551 | -9/Exiles | Entered Mines 2610 | -8/Mines | Lost 3 parts (2n1w) 2740 | -8/Mines | Discovered exit to Materials (range 7) 2749 | -8/Mines | Entered Materials 2749 | -8/Materials | Evolved 2 slots: Propulsion x1, Utility x1 2766 | -8/Materials | Identified exit to Factory 2954 | -8/Materials | Lost 4 parts (2p1n1w) 3068 | -8/Materials | Core integrity fell below 50% 3080 | -8/Materials | Core integrity fell below 20% 3090 | -8/Materials | Destroyed by H-61 Shepherd with Heavy Assault Cannon Last Messages --------------- 03055_ Acquired VTOL Module. 03055_ Surge Thruster destroyed. 03055_ Knocked back. 03057_ VTOL Module destroyed. 03059_ Acquired Particle Cannon. 03063_ C-17 Slicer destroyed. 03064_ Critical hit (Burn: +37). 03065_ VTOL Module destroyed. 03068_ Particle Cannon severed. 03072_ Slug penetrates Wall. 03072_ Beam Rifle destroyed. 03072_ Acquired 22 matter. 03076_ Slug penetrates Wall. 03077_ U-05 Engineer builds a Wall. 03079_ Acquired Lgt. Nuclear Core. 03079_ Penetrated by Slug. 03081_ Lgt. Nuclear Core destroyed. 03082_ U-05 Engineer lays Concrete. 03085_ Penetrated by Slug. 03090_ Proton Missile Launcher destroyed. Map ----- +----------------------------------------------------+ | ############????????????????????????????????????? | | ## ! #????????????????????????????????????? | | ## #????????????????????????????????????? | | # """"""" #????????????????????????????????????? | | # """"""" #????????????????????????????????????? | | + """"""" #????????????????????????????????????? | | # """"""" #????????????????????????????????????? | | # """"""" #????????????????????????????????????? | | ### #????????????????????????????????????? | | ??###########????????????????????????????????????? | | ?????????????????????????????????????????????????? | | ?????????????????????????????????????????????????? | | ?????????????????????????????????????????????????? | | ?????????????????????????????????????????????????? | | ?????????????????????????????????????????????????? | | ?????????????????????????????????????????????????? | | ?????????????????????????????????????????????????? | | ?????????????????????????????????????????????????? | | ?????????????????????????????????????????????????? | | ?????????????????????????????????????????????????? | | #####????????????????????????????????????????????? | | #????????????#######?????????????????????????? | | ##############! [#################?????????? | | ????????? | | ################## ?H??????? | | ?????????????????#! c%@ ????????? | | ?????????????????# % ###+##########????????????? | | ???????????######## Y## #????????????????? | | ???????????# [# h## #????????????????? | | ???????????# """!# ## #????????????????? | | ???????????# """ + ## #????????????????? | | ???????????# """ # ## #????????????????? | | ???????????# ! ]# ## #????????????????? | | ?????????## ! ==# ## #????????????????? | | ??????????# #### ## #????????????????? | | ?????????## Y### ## #????????????????? | | ?????????# # ###########????????????????? | | ?????????# = / #??????????????????????????? | | ?????????## # #??????????????????????????? | | ??????????## ### #??????????????????????????? | | ???????????######?# #??????????????????????????? | | ?????????????????? #?????????????????????????? | | ?????????????????? #?????????????????????????? | | ?????????????????? T #?????????????????????????? | | ?????????????????? #?????????????????????????? | | ?????????????????? #?????????????????????????? | | ?????????????????#######?????????????????????????? | | ?????????????????????????????????????????????????? | | ?????????????????????????????????????????????????? | | ?????????????????????????????????????????????????? | +----------------------------------------------------+ Best States ------------- Heat Dissipation 53 Energy Generation 14 Energy Capacity 265 Matter Stores 300 Matter Capacity 300 Sight Range 16 Terrain Scan Density 10 Armor Coverage 225 Evasion (%) 63 Recoil Reduction 3 Item Schematics ----------------- None Robot Schematics ------------------ None Fabricated ------------ Nothing Alien Tech Used ----------------- None Achievements -------------- None Challenges ------------ None Game ------ Seed ZioniteSpliceMachine Manual? 0 Play Time 00:32:57 Cumulative 17.0 hours Start 2024.04.06 @ 01:32:47 End 2024.04.06 @ 02:07:59 Sessions 1 Manual Loads 0 Difficulty Rogue Special Mode None Game No. 24 Rogue 24 Adventurer 0 Explorer 0 Win Type - Total 0 Types 0/0/0/0/0/0/0/0/0 Lore% 10 Gallery% 23 Achievement% 20 Wizard Run 0 Options --------- Layout 1 ASCII 0 Keyboard 0 Movement Numpad Keybinds 0 Fullscreen 1 Font 24/Crisp Map View 50x35 Zoom Use 0% Tactical HUD 1 Map Filters NONE Filters NONE Steam 1 RUN: c25ae613-0443-42e1-a274-a37a017e06a9